bitfinex/quotes_ETHUSD_20240810
["timestamp","ask_amount","ask_price","bid_price","bid_amount"]
[1723302760758,4.31646,2619.8,2619.1,1.90905]
[1723302760956,3.0,2619.7,2619.1,1.90905]
[1723302761156,3.0,2619.7,2619.2,0.234303]
[1723302761776,1.90856,2619.8,2619.2,0.72447491]
[1723302762063,1.90856,2619.8,2619.3,2.3127]
[1723302762564,1.90856,2619.8,2619.4,0.233999]
[1723302763146,3.81716,2619.8,2619.4,0.233999]
[1723302763328,1.90862,2619.7,2619.4,0.233999]
[1723302763729,1.90856,2619.8,2619.4,0.233999]
[1723302763971,3.81716,2619.8,2619.3,2.3127]
[1723302764263,1.90862,2619.7,2619.3,2.3127]
[1723302764857,1.90862,2619.7,2619.4,0.233999]
[1723302765468,2.50667146,2620.0,2619.4,2.44646609]
[1723302766039,2.50667146,2620.0,2619.4,4.35524609]
[1723302766563,2.50667146,2620.0,2619.4,4.4315836]
[1723302766868,1.90844,2620.0,2619.4,0.53768609]
[1723302767071,4.91046676,2620.2,2619.5,2.59773861]
[1723302767442,1.90837,2620.1,2619.6,0.23336763]
[1723302768276,4.91046676,2620.2,2619.6,0.23336763]
[1723302768432,3.81876676,2620.2,2619.6,0.23336763]
[1723302768635,3.0,2620.1,2619.7,2.3127]
[1723302768933,3.0,2620.1,2619.8,0.23310007]
[1723302769169,1.90827,2620.2,2619.8,0.23310007]
[1723302769480,4.90818,2620.3,2619.9,0.23296072]
[1723302770041,4.90818,2620.3,2619.7,4.22131]
[1723302770186,4.90818,2620.3,2620.0,0.23284933]
[1723302770351,4.90818,2620.3,2619.7,4.22131]
[1723302770867,4.90818,2620.3,2619.8,0.23307211]
[1723302771047,4.90818,2620.3,2619.7,4.22131]
[1723302771250,4.90818,2620.3,2619.9,0.23296072]
[1723302771492,4.90818,2620.3,2619.7,4.22131]
[1723302771691,4.90818,2620.3,2620.0,0.23283535]
[1723302771994,4.90818,2620.3,2619.8,0.47792597]
[1723302772499,3.0,2620.3,2619.9,0.23294115]
[1723302772670,4.90813,2620.4,2619.9,0.23294115]
[1723302772994,4.90813,2620.4,2619.9,0.72615386]
[1723302773197,1.90824,2620.3,2620.0,2.4242]
[1723302773352,4.90824,2620.3,2620.0,2.4242]
[1723302773552,1.90824,2620.3,2620.1,0.23271558]
[1723302773809,4.90824,2620.3,2620.1,0.23271558]
[1723302774091,4.90824,2620.3,2620.0,2.4242]
[1723302774454,4.90824,2620.3,2620.1,0.23271558]
[1723302774960,0.59807797,2620.8,2620.2,2.4242]
[1723302775175,0.59807797,2620.8,2620.2,4.4087216]
[1723302775353,1.90772,2621.0,2620.3,1.90812]
[1723302775556,1.90774,2620.9,2620.3,2.82213772]
[1723302775788,3.05374,2620.9,2620.3,2.82213772]
[1723302776285,1.146,2620.9,2620.3,2.82213772]
[1723302777029,1.146,2621.1,2620.6,2.4242]
[1723302777362,1.146,2621.1,2620.7,0.23204749]
[1723302777808,1.90755,2621.2,2620.7,0.23204749]
[1723302779207,1.90755,2621.2,2620.7,2.13992749]
[1723302779510,4.90745,2621.3,2620.8,0.46404378]
[1723302779713,4.90745,2621.3,2620.8,0.69565565]
[1723302780886,1.90753,2621.2,2620.8,0.69565565]
[1723302784593,1.9076,2621.1,2620.8,0.69565565]
[1723302784794,1.90753,2621.2,2620.8,0.23161187]
[1723302785264,1.90753,2621.2,2620.6,4.33211]
[1723302785462,1.90753,2621.2,2620.9,0.2312602]
[1723302785842,1.90753,2621.2,2620.6,4.33211]
[1723302786049,1.90753,2621.2,2621.0,0.2311489]
[1723302786256,1.90753,2621.2,2620.6,4.33211]
[1723302786445,1.90753,2621.2,2621.1,0.23103761]
[1723302787052,3.8151,2621.2,2621.1,0.23103761]
[1723302787365,1.90782,2620.8,2620.3,2.4242]
[1723302787966,1.90782,2620.8,2620.4,0.23181684]
[1723302788773,1.90782,2620.8,2620.7,10.0]
[1723302789196,1.90782,2620.8,2620.7,10.23148283]
[1723302792280,6.29884,2621.0,2620.7,10.23148283]
[1723302792994,4.39111,2621.0,2620.7,10.23148283]
[1723302793211,6.29883,2621.0,2620.7,10.23148283]
[1723302793416,1.90776,2620.9,2620.7,10.23148283]
[1723302794962,1.90781,2620.8,2620.7,10.23148283]
[1723302795383,1.90774,2620.9,2620.7,10.23148283]
[1723302796611,1.90781,2620.8,2620.7,10.23148283]
[1723302796963,1.90765,2621.1,2620.7,13.62573111]
[1723302797201,7.29,2621.4,2620.9,2.3711]
[1723302797368,0.59791802,2621.5,2621.0,1.90766]
[1723302797707,1.146,2621.2,2621.1,0.427876]
[1723302798002,1.146,2621.2,2621.1,0.23100407]
[1723302798341,1.146,2621.4,2621.1,0.23100407]
[1723302799672,0.1252257,2621.6,2621.1,2.13858407]
[1723302799986,0.1252257,2621.6,2621.2,0.40461841]
[1723302800583,0.1252257,2621.6,2621.1,2.13858407]
[1723302800584,0.1252257,2621.6,2621.1,0.23100407]
[1723302800790,2.0325057,2621.6,2621.2,0.23089279]
[1723302801220,2.0325057,2621.6,2621.0,1.9076]
[1723302801519,2.0325057,2621.6,2621.3,0.23078151]
[1723302801721,2.0325057,2621.6,2621.1,0.23100407]
[1723302801922,0.1252257,2621.6,2621.1,0.42787]
[1723302802125,0.1252257,2621.6,2621.2,4.27857]
[1723302802427,0.1252257,2621.6,2621.2,2.60199279]
[1723302803705,0.1252257,2621.6,2621.2,4.50950279]
[1723302803923,0.1252257,2621.6,2621.2,0.23089279]
[1723302804138,2.0324557,2621.6,2621.2,0.23089279]
[1723302804298,2.0324557,2621.6,2621.2,0.68185307]
[1723302804623,2.0324557,2621.6,2621.2,2.58936307]
[1723302804624,0.1252257,2621.6,2621.2,2.58936307]
[1723302804995,0.1252257,2621.6,2621.2,0.68185307]
[1723302805397,0.1252257,2621.6,2621.2,2.58936307]
[1723302805594,0.1252257,2621.6,2621.5,3.8146]
[1723302805815,0.1252257,2621.6,2621.5,4.2784]
[1723302805994,0.1252257,2621.6,2621.5,4.50878858]
[1723302807004,0.1252257,2621.6,2621.5,6.41608858]
[1723302808210,0.1252257,2621.6,2621.5,8.32338858]
[1723302808413,0.1252257,2621.6,2621.5,9.34646944]
[1723302809262,0.1252257,2621.6,2621.5,7.43916944]
[1723302811612,0.1252257,2621.6,2621.5,7.98916944]
[1723302812018,0.1252257,2621.6,2621.5,9.89646944]
[1723302812337,0.1252257,2621.6,2621.5,7.98916944]
[1723302813732,0.1252257,2621.6,2621.5,10.98916944]
[1723302814314,0.1252257,2621.6,2621.5,12.89646944]
[1723302814922,0.1252257,2621.6,2621.5,12.34646944]
[1723302815138,0.1252257,2621.6,2621.5,12.89646944]
[1723302817936,0.00467372,2621.8,2621.7,7.6286]
[1723302818139,3.72e-06,2621.8,2621.7,17.8732771]
[1723302818373,3.72e-06,2621.8,2621.7,15.9661271]
[1723302818576,3.72e-06,2621.8,2621.7,17.8732771]
[1723302818776,2.4384,2623.3,2623.0,1.9062]
[1723302819010,2.4384,2623.3,2623.1,0.22788364]
[1723302819267,1.9058,2623.6,2623.1,0.22788364]
[1723302819473,1.9058,2623.6,2623.0,1.90619]
[1723302819693,1.90585,2623.5,2623.2,0.22777252]
[1723302819839,1.90585,2623.5,2623.0,1.90619]
[1723302819840,1.9058,2623.6,2623.1,0.22788364]
[1723302820030,2.50299317,2623.8,2623.3,0.22766142]
[1723302820376,2.50299317,2623.8,2623.4,0.22755032]
[1723302820578,1.9057,2623.7,2623.1,0.07623997]
[1723302820790,1.9057,2623.7,2623.2,0.22777252]
[1723302821240,4.90552,2624.0,2623.3,1.90598]
[1723302821241,1.90556,2623.9,2623.3,1.90598]
[1723302821431,1.90552,2624.0,2623.4,1.90589]
[1723302821648,1.90552,2624.0,2623.4,2.13344032]
[1723302822234,4.34392,2624.0,2623.4,2.13344032]
[1723302822434,5.71059025,2624.0,2623.4,0.22755032]
[1723302822641,1.90557,2623.9,2623.4,0.22755032]
[1723302822948,1.90557,2623.9,2623.2,1.90602]
[1723302823190,1.90557,2623.9,2623.5,0.22743923]
[1723302823367,3.20563403,2623.9,2623.6,0.22732814]
[1723302823693,3.20563403,2623.9,2623.2,1.90601]
[1723302823979,1.90557,2623.9,2623.3,1.90596]
[1723302824650,1.90557,2623.9,2623.1,1.90611]
[1723302824844,1.90571,2623.7,2623.1,1.90611]
[1723302825277,1.90557,2623.9,2623.2,1.90606]
[1723302825585,1.90557,2623.9,2623.3,1.90598]
[1723302825740,1.90563,2623.8,2623.3,1.90598]
[1723302826174,2.4384,2624.0,2623.4,1.90588]
[1723302826688,1.90556,2623.9,2623.3,1.90598]
[1723302826893,2.4384,2624.0,2623.4,1.90588]
[1723302827059,1.90559,2623.9,2623.3,2.287189]
[1723302827255,1.90559,2623.9,2623.3,1.90598]
[1723302827461,2.4384,2624.0,2623.3,1.90593]
[1723302827862,1.90544,2624.1,2623.5,1.90579]
[1723302828063,3.0,2624.1,2623.5,1.90579]
[1723302828661,4.90542,2624.1,2623.5,0.38879754]
[1723302828983,3.0,2624.1,2623.5,2.29463754]
[1723302829288,3.0,2624.1,2623.6,1.90577]
[1723302829796,3.81093,2624.1,2623.4,1.9059]
[1723302830012,1.90546,2624.1,2623.3,1.90594]
[1723302830175,0.44712825,2624.0,2623.3,1.90594]
[1723302830496,2.4063,2623.8,2623.3,1.90594]
[1723302830992,2.4063,2623.8,2623.2,2.2813]
[1723302831289,2.4063,2623.8,2623.2,4.1873]
[1723302831290,4.31194,2623.8,2623.2,4.1873]
[1723302831496,2.4063,2623.8,2623.3,1.90599]
[1723302831680,1.90575,2623.7,2623.2,0.609338]
[1723302832004,1.90575,2623.7,2623.1,1.90608]
[1723302832005,4.31222,2623.4,2623.3,0.22726815]
[1723302832212,4.31222,2623.4,2622.6,1.90644]
[1723302832213,4.743442,2623.4,2622.7,1.90641]
[1723302832436,9.21765,2623.8,2623.3,0.22726815]
[1723302832705,4.31196,2623.8,2623.2,1.90602]
[1723302832908,4.31196,2623.8,2623.4,0.22673591]
[1723302833119,1.90578,2623.6,2623.3,0.22684701]
[1723302833270,1.90578,2623.6,2623.5,0.22662482]
[1723302833470,1.90593,2623.4,2622.7,1.90636]
[1723302833708,2.4063,2623.3,2622.7,2.52227]
[1723302834023,3.81165,2623.6,2622.9,1.90624]
[1723302834219,4.90543,2624.1,2623.1,1.90612]
[1723302834220,2.4063,2623.7,2623.1,1.90612]
[1723302834596,2.4063,2623.7,2623.2,2.13296812]
[1723302835130,2.4063,2623.7,2623.3,1.90599]
[1723302835418,2.4063,2623.7,2623.4,0.22673591]
[1723302835631,2.4063,2623.7,2623.2,0.40391681]
[1723302835812,2.4063,2623.7,2623.5,0.22662482]
[1723302836109,2.4063,2623.7,2623.2,2.30997681]
[1723302836327,2.4063,2623.7,2623.6,0.22651374]
[1723302836483,2.4063,2623.7,2623.2,2.30997681]
[1723302837018,2.4063,2623.7,2623.3,0.22684701]
[1723302837220,2.4063,2623.7,2623.2,2.30997681]
[1723302837530,2.4063,2623.7,2623.4,0.22673591]
[1723302837681,2.4063,2623.7,2623.3,0.22684701]
[1723302837882,2.4063,2623.7,2623.5,0.22662482]
[1723302838122,2.4063,2623.7,2623.4,0.22666345]
[1723302838437,2.4063,2623.7,2623.2,2.30997681]
[1723302838438,2.4063,2623.7,2623.5,0.22655236]
[1723302838609,2.4063,2623.7,2623.2,4.21595681]
[1723302838922,2.4063,2623.7,2623.6,0.22644127]
[1723302839134,2.4063,2623.7,2623.2,2.30992681]
[1723302839303,4.3118,2624.0,2623.6,0.22644127]
[1723302839509,4.90556,2623.9,2623.4,1.90591]
[1723302839693,4.90556,2623.9,2623.7,0.2263302]
[1723302839897,3.0,2623.9,2623.4,3.81177]
[1723302840098,4.78279246,2624.2,2623.8,0.22621914]
[1723302840099,2.03279246,2624.2,2623.8,0.22621914]
[1723302840297,2.03279246,2624.2,2623.4,2.34122115]
[1723302840540,2.03279246,2624.2,2623.9,0.22605234]
[1723302840726,2.03279246,2624.2,2623.2,1.90601]
[1723302840727,2.4063,2624.1,2623.2,1.90601]
[1723302841044,1.90551,2624.0,2623.2,1.90601]
[1723302841212,1.90558,2623.9,2623.3,2.1326888]
[1723302841412,1.90551,2624.0,2623.4,2.30973988]
[1723302841597,1.90551,2624.0,2623.4,2.53630578]
[1723302842032,1.90551,2624.0,2623.5,1.90584]
[1723302842216,1.90551,2624.0,2623.5,2.13229481]
[1723302842944,2.4063,2624.1,2623.5,2.13229481]
[1723302843141,4.31172,2624.1,2623.5,2.13229481]
[1723302844152,1.90553,2624.0,2623.5,0.22645481]
[1723302844314,1.90569,2623.8,2623.5,0.22645481]
[1723302844517,4.31205,2623.7,2623.1,11.74232]
[1723302844717,2.4063,2623.7,2623.6,0.22634094]
[1723302844920,2.4063,2623.7,2623.2,1.90605]
[1723302845308,1.90569,2623.8,2623.3,2.13265422]
[1723302845545,2.4063,2623.9,2623.3,2.13261422]
[1723302846647,1.90552,2624.0,2623.3,2.13261422]
[1723302846648,1.90552,2624.0,2623.4,1.90586]
[1723302846851,4.4368957,2624.2,2623.5,1.9058]
[1723302847025,4.4368957,2624.2,2623.5,2.13227153]
[1723302847722,4.4368957,2624.2,2623.5,0.22647153]
[1723302848021,4.4368957,2624.2,2623.5,2.99783283]
[1723302848947,0.1,2625.3,2623.5,2.99783283]
[1723302848948,1.90438,2625.6,2624.6,6.1563]
[1723302849150,4.3105,2625.8,2624.6,2.3462]
[1723302849151,4.31053,2625.8,2624.6,2.3462]
[1723302849372,4.31053,2625.8,2625.1,1.90462]
[1723302849545,4.31053,2625.8,2624.9,1.90479]
[1723302850066,4.31053,2625.8,2625.0,2.12947651]
[1723302850229,2.75,2626.3,2625.0,2.12947651]
[1723302850230,5.1048,2626.3,2625.1,2.3677]
[1723302850415,1.90435,2625.6,2625.1,0.22437208]
[1723302850734,1.90435,2625.6,2624.2,1.90533]
[1723302850735,2.3548,2625.3,2625.2,0.21678091]
[1723302850940,2.3548,2625.3,2624.3,4.27291]
[1723302850941,1.90473,2625.1,2624.3,4.27291]
[1723302851143,4.49482,2625.3,2624.3,2.3677]
[1723302851447,0.23548,2625.3,2624.6,1.90503]
[1723302851627,1.90441,2625.5,2624.8,1.90488]
[1723302852149,1.90441,2625.5,2624.9,0.21701163]
[1723302852716,1.90454,2625.3,2624.9,0.21701163]
[1723302852918,1.90442,2625.5,2624.9,0.21701163]
[1723302853117,2.630341,2625.5,2624.8,1.9049]
[1723302853653,7.25908,2625.7,2624.9,0.21701163]
[1723302853810,2.3548,2625.7,2625.2,1.90461]
[1723302854249,2.3548,2625.7,2625.3,0.21656782]
[1723302854613,1.90419,2625.8,2625.3,0.06894131]
[1723302854817,1.90427,2625.7,2625.4,0.21645689]
[1723302855250,1.90419,2625.8,2625.1,0.07617379]
[1723302855553,1.90384,2626.3,2625.4,1.90444]
[1723302855554,1.90382,2626.3,2625.4,1.90444]
[1723302855751,1.9038,2626.4,2625.6,1.90425]
[1723302856056,1.9043,2625.7,2625.0,1.90475]
[1723302856351,1.90386,2626.3,2625.5,1.90439]
[1723302856511,1.90401,2626.1,2625.5,1.90439]
[1723302856723,3.0,2626.2,2625.5,1.90439]
[1723302856922,2.329726,2626.3,2625.6,1.90427]
[1723302857166,2.329726,2626.3,2625.7,0.07616132]
[1723302858271,0.425866,2626.3,2625.7,1.98040132]
[1723302858437,0.425866,2626.3,2625.7,1.90424]
[1723302858634,0.20309025,2626.7,2626.0,1.90397]
[1723302858635,2.10662025,2626.7,2626.0,1.90397]
[1723302858834,2.10662025,2626.7,2625.7,2.3677]
[1723302859035,2.10662025,2626.7,2626.1,1.90395]
[1723302859257,2.4800257,2626.8,2626.2,1.90383]
[1723302859562,4.3834757,2626.8,2626.1,1.90395]
[1723302859782,2.4800257,2626.8,2626.1,3.80785]
[1723302860067,2.4800257,2626.8,2626.1,1.9039]
[1723302860275,2.4800257,2626.8,2626.3,1.90375]
[1723302860276,0.1252257,2626.8,2626.3,1.90375]
[1723302860422,0.1252257,2626.8,2626.3,1.97989274]
[1723302860829,1.90372,2626.5,2625.7,4.2719]
[1723302861026,0.425852,2626.4,2625.7,4.2719]
[1723302861244,0.425852,2626.4,2625.9,1.9041]
[1723302861454,0.425852,2626.4,2626.0,1.90397]
[1723302861656,0.1252257,2626.8,2626.2,1.90383]
[1723302861864,1.90365,2626.6,2626.0,1.90397]
[1723302862167,1.90365,2626.6,2625.3,5.75]
[1723302862168,0.1252257,2626.8,2626.1,4.27163]
[1723302862328,1.90354,2626.7,2626.1,0.07615613]
[1723302862531,0.43835657,2626.6,2626.2,0.21491142]
[1723302862782,0.43835657,2626.6,2625.6,1.90431]
[1723302863061,1.90404,2626.0,2625.1,2.3677]
[1723302863236,4.25874,2626.2,2625.5,1.90432]
[1723302863444,1.90377,2626.4,2625.6,1.90428]
[1723302863767,5.09197657,2626.6,2625.6,1.90428]
[1723302863768,1.90365,2626.6,2626.0,1.90398]
[1723302863990,1.90379,2626.4,2625.6,4.272]
[1723302864147,1.90394,2626.2,2625.5,1.90439]
[1723302864355,1.90401,2626.1,2625.4,1.9044]
[1723302864676,1.90401,2626.1,2625.5,1.90439]
[1723302864836,2.735571,2626.2,2625.3,2.3677]
[1723302865035,1.90376,2626.4,2625.8,1.90417]
[1723302866572,1.90392,2626.2,2625.3,2.3677]
[1723302866869,1.9038,2626.4,2625.6,1.90431]
[1723302867083,1.9038,2626.4,2625.7,1.9042]
[1723302867254,1.9038,2626.4,2625.8,1.90413]
[1723302867765,1.9038,2626.4,2625.8,1.90412]
[1723302868671,1.9038,2626.4,2625.3,2.628147]
[1723302868672,1.90394,2626.2,2625.5,1.90434]
[1723302868969,1.90376,2626.4,2625.8,1.90413]
[1723302868970,0.72586,2626.3,2625.8,1.90413]
[1723302869567,2.62968,2626.3,2625.6,1.90425]
[1723302869772,0.262962,2626.2,2625.6,1.90425]
[1723302869971,2.166862,2626.2,2625.6,1.90425]
[1723302870341,0.1252257,2626.8,2626.0,3.80803]
[1723302870568,0.1252257,2626.8,2626.0,2.3502]
[1723302870768,0.1252257,2626.8,2626.1,1.90389]
[1723302870988,1.90353,2626.7,2626.0,4.25418]
[1723302871184,1.90362,2626.6,2626.0,1.90398]
[1723302871376,0.56084695,2626.8,2625.7,1.9042]
[1723302871377,1.9037,2626.5,2625.7,1.9042]
[1723302871688,4.2291,2626.5,2625.7,4.9042]
[1723302871876,2.3254,2626.5,2626.1,1.90389]
[1723302872039,0.56084695,2626.8,2625.8,0.07615175]
[1723302872040,2.88624695,2626.8,2625.8,0.07615175]
[1723302872240,2.88624695,2626.8,2626.3,1.90375]
[1723302872474,2.88624695,2626.8,2626.4,1.90374]
[1723302872677,2.88624695,2626.8,2626.4,2.11151114]
[1723302872874,0.56084695,2626.8,2626.5,1.90366]
[1723302873037,0.1252257,2626.8,2626.5,2.11131758]
[1723302873240,0.1252257,2626.8,2626.6,1.90359]
[1723302873446,0.1252257,2626.8,2626.6,2.11113675]
[1723302873647,0.1252257,2626.8,2626.7,1.90352]
[1723302873979,0.1252257,2626.8,2626.7,2.11087687]
[1723302874555,0.1252257,2626.8,2626.7,6.77365696]
[1723302875069,0.1252257,2626.8,2626.7,0.20735687]
[1723302875474,0.1252257,2626.8,2626.5,1.9036]
[1723302875675,0.1252257,2626.8,2626.7,0.20708142]
[1723302875886,0.1252257,2626.8,2626.5,1.9036]
[1723302875887,0.1252257,2626.8,2626.5,3.80722]
[1723302876091,0.1252257,2626.8,2626.7,0.20708142]
[1723302876294,0.1252257,2626.8,2626.7,1.90352]
[1723302876604,0.1252257,2626.8,2626.7,2.11060142]
[1723302878108,0.1252257,2626.8,2626.7,0.20708142]
[1723302878409,0.1252257,2626.8,2626.5,1.9036]
[1723302878579,0.1252257,2626.8,2626.7,0.20708687]
[1723302878781,0.1252257,2626.8,2626.3,1.90381]
[1723302879084,2.4506257,2626.8,2626.4,0.20741935]
[1723302879280,2.65371295,2626.8,2626.4,0.20741935]
[1723302879470,1.90354,2626.7,2626.4,0.20741935]
[1723302879887,1.9036,2626.6,2626.1,1.90392]
[1723302880090,1.90354,2626.7,2625.7,1.9042]
[1723302880091,1.90379,2626.4,2625.7,1.9042]
[1723302880270,2.3254,2626.3,2625.7,1.9042]
[1723302880680,4.22924,2626.3,2625.7,1.9042]
[1723302881123,1.90393,2626.2,2625.5,1.90435]
[1723302881288,1.90397,2626.1,2625.5,1.90435]
[1723302881681,2.601853,2626.2,2625.3,2.164977]
[1723302881904,1.90423,2625.8,2625.2,0.23677]
[1723302882104,4.22966,2625.7,2625.1,1.90464]
[1723302882410,1.90418,2625.8,2625.1,1.90462]
[1723302882611,1.90425,2625.7,2624.9,1.9048]
[1723302882816,1.90425,2625.7,2625.0,0.19048]
[1723302883241,4.22987,2625.4,2624.7,1.90492]
[1723302883749,1.90454,2625.3,2624.7,1.90492]
[1723302883952,2.3254,2625.4,2624.9,1.90482]
[1723302884103,4.22962,2625.8,2624.6,1.905]
[1723302884307,4.22962,2625.8,2623.9,0.1]
[1723302884308,2.3254,2625.8,2625.1,1.90468]
[1723302884614,2.3254,2625.8,2624.8,1.90487]
[1723302884615,1.90427,2625.7,2624.8,1.90487]
[1723302884935,1.90444,2625.5,2624.8,1.90487]
[1723302885253,1.90444,2625.5,2624.8,0.400039]
[1723302885254,1.90457,2625.3,2624.8,0.400039]
[1723302885401,4.22997,2625.3,2624.8,0.400039]
[1723302885836,1.90461,2625.2,2624.6,1.905]
[1723302886133,4.22997,2625.3,2624.4,1.90517]
[1723302886134,1.90474,2625.1,2624.4,1.90517]
[1723302886444,1.90474,2625.1,2624.5,0.190517]
[1723302886643,1.90476,2625.0,2624.5,0.190517]
[1723302886874,3.80947,2625.1,2624.5,0.190517]
[1723302887020,1.90478,2625.0,2624.5,0.190517]
[1723302887229,1.90473,2625.1,2624.2,1.90532]
[1723302887230,1.90492,2624.8,2624.2,1.90532]
[1723302887540,1.90492,2624.8,2624.0,1.90546]
[1723302887541,2.3254,2624.8,2624.0,1.90544]
[1723302887725,2.3254,2624.8,2624.1,0.190544]
[1723302888531,2.3254,2624.8,2624.2,1.90534]
[1723302888532,4.23035,2624.8,2624.2,1.90534]
[1723302888934,2.3254,2624.8,2624.3,1.90526]
[1723302889134,2.3254,2624.8,2624.2,1.90534]
[1723302889469,2.3254,2625.1,2624.4,1.90518]
[1723302889619,4.23009,2625.1,2624.4,1.90518]
[1723302890138,4.23009,2625.1,2623.8,3.0]
[1723302890325,1.90476,2625.0,2624.4,1.90514]
[1723302890663,4.23009,2625.1,2624.4,3.81027]
[1723302890971,1.90476,2625.0,2624.4,1.90513]
[1723302891124,1.90484,2624.9,2624.2,1.90531]
[1723302891321,1.90484,2624.9,2624.3,0.190531]
[1723302891525,3.80974,2624.9,2624.3,0.190531]
[1723302891764,1.90493,2624.8,2624.3,0.190531]
[1723302891924,1.90493,2624.8,2624.4,0.21046395]
[1723302892127,1.90484,2624.9,2624.4,0.21046395]
[1723302892871,2.3254,2625.1,2624.0,1.90545]
[1723302893075,1.90486,2624.9,2624.5,0.21035294]
[1723302893366,1.90484,2624.9,2624.1,1.90536]
[1723302893570,3.80973,2624.9,2624.3,1.90522]
[1723302893778,1.90495,2624.8,2624.3,0.381058]
[1723302893937,1.90498,2624.7,2624.4,0.21046395]
[1723302894348,1.90506,2624.6,2624.4,0.21046395]
[1723302894543,1.90513,2624.5,2623.9,1.90553]
[1723302894781,3.81032,2624.5,2623.9,0.639642]
[1723302895058,1.90513,2624.5,2623.9,0.639642]
[1723302895393,3.81032,2624.5,2623.9,0.639642]
[1723302895886,1.90521,2624.4,2623.8,1.90559]
[1723302896090,1.90521,2624.4,2623.7,1.90569]
[1723302896091,1.90531,2624.3,2623.7,1.90569]
[1723302896255,1.90539,2624.2,2623.5,1.90579]
[1723302896466,1.90539,2624.2,2623.6,0.381167]
[1723302896661,1.90541,2624.1,2623.6,0.381167]
[1723302896865,1.90541,2624.1,2623.4,1.90588]
[1723302896866,1.9055,2624.0,2623.4,1.90588]
[1723302897038,1.9056,2623.9,2623.2,1.90604]
[1723302897385,1.9056,2623.9,2623.2,1.90602]
[1723302897589,4.33214,2624.1,2623.3,0.190602]
[1723302898240,6.23761,2624.1,2623.4,1.90587]
[1723302898959,1.90549,2624.0,2623.4,1.90587]
[1723302899372,1.9056,2623.9,2623.3,0.190602]
[1723302900394,4.33213,2624.1,2623.3,0.190602]
[1723302900676,1.90557,2623.9,2623.3,2.096542]
[1723302901050,2.4267,2624.1,2623.4,1.90591]
[1723302901250,2.4267,2624.1,2623.3,0.190602]
[1723302901451,1.90557,2623.9,2623.3,2.096592]
[1723302901684,6.23762,2624.1,2623.4,2.3061712]
[1723302901896,1.90554,2624.0,2623.4,2.3061712]
[1723302902099,4.33216,2624.1,2623.4,2.3061712]
[1723302902100,2.4267,2624.1,2623.4,2.3061712]
[1723302902259,2.4267,2624.4,2623.8,1.90558]
[1723302902608,6.134885,2624.4,2623.8,1.90558]
[1723302902813,1.90501,2624.7,2623.5,2.4791]
[1723302902964,4.33171,2624.7,2623.9,1.90551]
[1723302903688,4.33171,2624.7,2623.9,1.9055]
[1723302903904,1.90472,2625.1,2624.5,1.90505]
[1723302903905,2.4267,2625.1,2624.5,1.90505]
[1723302904078,0.59852491,2626.4,2624.7,1.90493]
[1723302904079,2.4267,2625.5,2624.7,1.90493]
[1723302904260,2.4267,2625.5,2624.4,4.38424]
[1723302904261,1.90475,2625.1,2624.4,4.38424]
[1723302904465,1.90483,2624.9,2624.4,2.4791]
[1723302904657,1.90483,2624.9,2624.5,0.24791]
[1723302904885,1.90502,2624.7,2624.0,2.4791]
[1723302905120,1.90502,2624.7,2623.9,4.9055]
[1723302905121,1.90502,2624.7,2623.9,1.90549]
[1723302905279,1.90517,2624.5,2623.8,1.90558]
[1723302905605,1.90501,2624.7,2624.1,1.90541]
[1723302905806,1.90485,2624.9,2624.1,1.90536]
[1723302906013,1.90491,2624.8,2624.1,2.1587895]
[1723302906298,1.90485,2624.9,2624.2,1.90529]
[1723302906465,2.4267,2625.0,2624.4,1.90518]
[1723302906466,4.33147,2625.0,2624.4,1.90518]
[1723302906660,2.4267,2625.0,2624.5,1.90512]
[1723302906909,3.0,2625.2,2624.6,1.90504]
[1723302907074,4.33126,2625.3,2624.6,3.81003]
[1723302907262,1.90462,2625.2,2624.7,0.21069583]
[1723302907586,4.33126,2625.3,2624.7,0.21069583]
[1723302907909,1.90468,2625.2,2624.5,1.90507]
[1723302908066,1.90469,2625.1,2624.8,0.21058485]
[1723302908259,1.90469,2625.1,2624.6,2.286063]
[1723302908473,4.33126,2625.3,2624.9,0.21047388]
[1723302908694,4.33126,2625.3,2624.6,2.286023]
[1723302909018,3.0,2625.5,2624.8,1.90485]
[1723302909307,5.4267,2625.6,2624.8,1.90485]
[1723302909478,5.4267,2625.6,2624.9,0.21023641]
[1723302909674,1.9044,2625.5,2624.9,2.33414334]
[1723302909987,4.9044,2625.5,2624.9,0.42936334]
[1723302910196,1.90467,2625.2,2624.9,0.21023641]
[1723302910379,1.90473,2625.1,2624.4,3.8103]
[1723302910576,1.90473,2625.1,2624.5,2.11579035]
[1723302910887,1.90473,2625.1,2624.6,0.40209304]
[1723302911078,1.90473,2625.1,2624.6,0.61266239]
[1723302911274,5.75,2625.5,2624.6,0.61266239]
[1723302911275,7.65443,2625.5,2624.6,0.61266239]
[1723302911495,1.90453,2625.4,2624.8,1.90488]
[1723302911996,1.90453,2625.4,2624.9,0.2101409]
[1723302912390,7.65443,2625.5,2624.9,0.2101409]
[1723302912391,4.90443,2625.5,2624.9,0.2101409]
[1723302912589,4.90443,2625.5,2624.9,0.42164299]
[1723302912967,4.21666,2625.0,2624.9,0.2101409]
[1723302913169,1.90491,2624.8,2624.2,4.20198]
[1723302913485,1.90491,2624.8,2624.3,0.21078503]
[1723302913685,4.21667,2625.0,2624.4,1.90519]
[1723302913898,1.90462,2625.2,2624.4,0.21071767]
[1723302914102,1.9047,2625.1,2624.4,0.21071767]
[1723302914277,2.3119,2625.3,2624.4,0.21071767]
[1723302914478,1.90495,2624.8,2624.4,0.21071767]
[1723302914679,1.90482,2625.0,2624.3,1.90522]
[1723302914887,1.90482,2625.0,2624.5,0.21063941]
[1723302915084,1.90482,2625.0,2624.3,1.90522]
[1723302915282,1.90482,2625.0,2624.6,0.21052842]
[1723302915605,5.3119,2625.3,2624.7,0.21041743]
[1723302915806,5.3119,2625.3,2624.5,1.90505]